Workbook

Sheet FCON
A1: PROPOSTA FINANCEIRA DO PROJETO | F1: CODIGO:
F2: FCON
A3: NOME DA CONSULTORA:
A5: PROJETO: | D5: PRODUTOS: | F5: EDITAL:
A6: LEVANTAMENTO CARTOGRÁFICO AEROFOTOGRAMÉTRICO DIGITAL E LIDAR DE ÁREAS A JUSANTE DE BARRAGENS DA CODEVASF | D6: P1 - BICO; P2 - COVA_ESTR; P3 - CERA_POÇO; P4 - MIRO; P5 - ZABU
A7: Cod. | B7: Categoria / Insumo | C7: Uni | D7: Qde | E7: PU | F7: PT
A8: LA | B8: Levantamento Aerofotogramétrico | E8: =SUM(E9:E16) -> 1010.69
A9: LA01 | B9: Voo Aerofotogramétrico | C9: km² | D9: =SUMIF(FCON1_Qde!$B$10:$B$19,"="&FCON!$B9,FCON1_Qde!$D$10:$D$19) -> 3771.01 | E9: 150 | F9: =ROUND(E9*D9,2) -> 565651.5
A10: LA02 | B10: Planejamento | C10: km² | D10: =SUMIF(FCON1_Qde!$B$10:$B$19,"="&FCON!$B10,FCON1_Qde!$D$10:$D$19) -> 3771.01 | E10: 17.7 | F10: =ROUND(E10*D10,2) -> 66746.88
A11: LA03 | B11: Apoio de Campo | C11: km² | D11: =SUMIF(FCON1_Qde!$B$10:$B$19,"="&FCON!$B11,FCON1_Qde!$D$10:$D$19) -> 3771.01 | E11: 80 | F11: 301680.8
A12: LA04 | B12: Aerotriangulação | C12: km² | D12: =SUMIF(FCON1_Qde!$B$10:$B$19,"="&FCON!$B12,FCON1_Qde!$D$10:$D$19) -> 3771.01 | E12: 19 | F12: 71649.19
A13: LA05 | B13: Restituição | C13: km² | D13: =SUMIF(FCON1_Qde!$B$10:$B$19,"="&FCON!$B13,FCON1_Qde!$D$10:$D$19) -> 3771.01 | E13: 523.99 | F13: 1975971.53
A14: LA06 | B14: Reambulação | C14: km² | D14: =SUMIF(FCON1_Qde!$B$10:$B$19,"="&FCON!$B14,FCON1_Qde!$D$10:$D$19) -> 3771.01 | E14: 65 | F14: 245115.65
A15: LA07 | B15: Edição/Revisão | C15: km² | D15: =SUMIF(FCON1_Qde!$B$10:$B$19,"="&FCON!$B15,FCON1_Qde!$D$10:$D$19) -> 3771.01 | E15: 80 | F15: 301680.8
A16: LA08 | B16: Entrega Final | C16: km² | D16: =SUMIF(FCON1_Qde!$B$10:$B$19,"="&FCON!$B16,FCON1_Qde!$D$10:$D$19) -> 3771.01 | E16: 75 | F16: 282825.75
A17: MC | B17: Materiais de Consumo
A18: M1 | B18: HD Externo 4TB | C18: Uni | D18: =SUMIF(FCON1_Qde!$B$10:$B$21,"="&FCON!$B18,FCON1_Qde!$D$10:$D$21) -> 5 | E18: 583.77 | F18: =ROUND(E18*D18,2) -> 2918.85
A19: M2 | B19: Servidor NAS 4 Baias 40TB | C19: Uni | D19: =SUMIF(FCON1_Qde!$B$10:$B$21,"="&FCON!$B19,FCON1_Qde!$D$10:$D$21) -> 1 | E19: 3019 | F19: 3019
A20: M3 | B20: HD Interno SATA3 10TB | C20: Uni | D20: =SUMIF(FCON1_Qde!$B$10:$B$21,"="&FCON!$B20,FCON1_Qde!$D$10:$D$21) -> 4 | E20: 1805.9 | F20: 7223.6
A21: TOTAL DA PROPOSTA | E21: =SUM(F9:F20) -> 3824483.55
A22: NOME DO INFORMANTE: | F22: QUALIFICAÇÃO
A24: ASSINATURA: | F24: DATA:
A26: OBSERVAÇÃO:
A27: Uni - unidade de medição do insumo;
A28: Qde - Quantidade do Insumo (detalhados na Planilha FCON1, não pode ser alterado)
A29: PU - Preço Unitário (incluído encargos, taxas e impostos)
A30: PT - Preço Total (incluído encargos, taxas e impostos)
A31: Descrever as Despesas Fiscais (DF) e Remuneração da Empresa (Lucro) na Planilha FCON2

Sheet FCON1_Qde
A1: QUANTITATIVOS POR PRODUTO | H1: CODIGO:
H2: FCON-2
A3: NOME DA CONSULTORA:
A5: PROJETO: | C5: PRODUTOS: | H5: EDITAL:
A6: LEVANTAMENTO CARTOGRÁFICO AEROFOTOGRAMÉTRICO DIGITAL E LIDAR DE ÁREAS A JUSANTE DE BARRAGENS DA CODEVASF | C6: P1 - BICO; P2 - COVA_ESTR; P3 - CERA_POÇO; P4 - MIRO; P5 - ZABU
A7: Cod. | B7: Insumo / Atividade | C7: Uni | D7: Qde Total | E7: Barragem / Produto
E8: Bico | F8: Cova-Estr | G8: Cera-Poço | H8: Miro | I8: Zabu
A9: LA | B9: Levantamento Aerofotogramétrico | E9: P1 | F9: P2 | G9: P3 | H9: P4 | I9: P5
A10: LA01 | B10: Voo Aerofotogramétrico | C10: km² | D10: =SUM(E10:I10) -> 3771.01 | E10: 946.8 | F10: 982.44 | G10: 420.21 | H10: 606.47 | I10: 815.09
A11: LA02 | B11: Planejamento | C11: km² | D11: 3771.01 | E11: 946.8 | F11: 982.44 | G11: 420.21 | H11: 606.47 | I11: 815.09
A12: LA03 | B12: Apoio de Campo | C12: km² | D12: 3771.01 | E12: 946.8 | F12: 982.44 | G12: 420.21 | H12: 606.47 | I12: 815.09
A13: LA04 | B13: Aerotriangulação | C13: km² | D13: 3771.01 | E13: 946.8 | F13: 982.44 | G13: 420.21 | H13: 606.47 | I13: 815.09
A14: LA05 | B14: Restituição | C14: km² | D14: 3771.01 | E14: 946.8 | F14: 982.44 | G14: 420.21 | H14: 606.47 | I14: 815.09
A15: LA06 | B15: Reambulação | C15: km² | D15: 3771.01 | E15: 946.8 | F15: 982.44 | G15: 420.21 | H15: 606.47 | I15: 815.09
A16: LA07 | B16: Edição/Revisão | C16: km² | D16: 3771.01 | E16: 946.8 | F16: 982.44 | G16: 420.21 | H16: 606.47 | I16: 815.09
A17: LA08 | B17: Entrega Final | C17: km² | D17: 3771.01 | E17: 946.8 | F17: 982.44 | G17: 420.21 | H17: 606.47 | I17: 815.09
A18: MC | B18: Materiais de Consumo
A19: M1 | B19: HD Externo 4TB | C19: Uni | D19: =SUM(E19:I19) -> 5 | E19: 1 | F19: 1 | G19: 1 | H19: 1 | I19: 1
A20: M2 | B20: Servidor NAS 4 Baias 40TB | C20: Uni | D20: =SUM(E20:I20) -> 1 | E20: 0.2 | F20: 0.2 | G20: 0.2 | H20: 0.2 | I20: 0.2
A21: M3 | B21: HD Interno SATA3 10TB | C21: Uni | D21: 4 | E21: 0.8 | F21: 0.8 | G21: 0.8 | H21: 0.8 | I21: 0.8
A22: Preço por Produto | E22: =E$17*SUM(FCON!$E$9:$E$16)+E$19*FCON!$E$18+E$20*FCON!$E$19+E$21*FCON!$E$20 -> 959553.582 | F22: =F$17*SUM(FCON!$E$9:$E$16)+F$19*FCON!$E$18+F$20*FCON!$E$19+F$21*FCON!$E$20 -> 995574.5736 | G22: =G$17*SUM(FCON!$E$9:$E$16)+G$19*FCON!$E$18+G$20*FCON!$E$19+G$21*FCON!$E$20 -> 427334.3349 | H22: =H$17*SUM(FCON!$E$9:$E$16)+H$19*FCON!$E$18+H$20*FCON!$E$19+H$21*FCON!$E$20 -> 615585.4543 | I22: =I$17*SUM(FCON!$E$9:$E$16)+I$19*FCON!$E$18+I$20*FCON!$E$19+I$21*FCON!$E$20 -> 826435.6021
A23: NOME DO INFORMANTE: | G23: QUALIFICAÇÃO:
A25: ASSINATURA: | G25: DATA:
A27: OBSERVAÇÃO:
A28: A proposta não pode alterar os quantitativos por produto ou total.

Sheet FCON2_FatorK34
A1: DESPESAS FISCAIS E LUCRO: K3, K4 | F1: CODIGO:
F2: FCON-2
A3: NOME DA CONSULTORA:
A5: PROJETO: | C5: PRODUTOS: | F5: EDITAL:
A6: LEVANTAMENTO CARTOGRÁFICO AEROFOTOGRAMÉTRICO DIGITAL E LIDAR DE ÁREAS A JUSANTE DE BARRAGENS DA CODEVASF | C6: P1 - BICO; P2 - COVA_ESTR; P3 - CERA_POÇO; P4 - MIRO; P5 - ZABU
A7: DISCRIMINAÇÃO 1 | D7: VALORES
D8: % preço | E8: % custo | F8: R$
A9: K4 | B9: DESPESAS FISCAIS (DF) | D9: K (%)2 | E9: K' (%)3
D10: =ROUND(D11+D12+D13,4) -> 0.1425 | E10: =ROUND(E11+E12+E13,4) -> 0.1661 | F10: =D10*FCON!$E$21 -> 544988.9059
A11: 1 | B11: ISS | D11: 0.05 | E11: =ROUND((1/(1-$D$10))*D11,4) -> 0.0583 | F11: =D11*FCON!$E$21 -> 191224.1775
A12: 2 | B12: PIS | D12: 0.0165 | E12: =ROUND((1/(1-$D$10))*D12,4) -> 0.0192 | F12: =D12*FCON!$E$21 -> 63103.97858
A13: 3 | B13: COFINS | D13: 0.076 | E13: =ROUND((1/(1-$D$10))*D13,4) -> 0.0886 | F13: =D13*FCON!$E$21 -> 290660.7498
A14: K3 | B14: REMUNERAÇÃO DA EMPRESA (LUCRO) | D14: =ROUND(1-(1/(E14+1)),4) -> 0.0909 | E14: 0.1 | F14: =D14*(FCON!$E$21-F10) -> 298106.0632
A15: K'' | B15: TAXA DE RESSARCIMENTO DE DESPESAS SOBRE CUSTOS DIVERSOS | E15: =ROUND((1+E14)*(1+E10),4) -> 1.2827
A16: NOME DO INFORMANTE: | E16: QUALIFICAÇÃO:
A18: ASSINATURA: | E18: DATA:
A20: Observação:
A21: 1 - DISCRIMINAR OS TRIBUTOS QUE INCIDEM SOBRE OS CUSTOS DA PRESTAÇÃO DOS SERVIÇOS
A22: 2 - K4 = INDICAR % DE CADA TRIBUTO E A SOMA DOS MESMOS (ex: ISS 5% + PIS 1,65% + COFINS 7,60% = 14,25%)
A23: 3 - AS DESPESAS FISCAIS (K4) INCIDEM SOBRE O TOTAL DA FATURA E NÃO SOBRE OS CUSTOS INCORRIDOS,
A24: DEVENDO SER CALCULADO O K4' APLICANDO-SE A SEGUINTE FÓRMULA:
A25: K4 = { 1 - [ 1 / ( 1 + K4') ] } x 100
A26: K4' = { [ 1 / ( 1 - K4) ] - 1 } x 100
A27: =CONCATENATE(" K4' = { [ 1 / ( 1 - ",D10," ) ] - 1 } x 100") -> K4' = { [ 1 / ( 1 - 0,1425 ) ] - 1 } x 100
A28: K'' - Taxa de Ressarcimento de Despesas sobre Custos Diversos (incide sobre os Insumos Codigo DP, MC e LA)
A29: K'' = (1 + K3) x (1 + K4)
A30: K'3 - Incide sobre o Custo Total (CT) Mão de Obra com encargos (MO x K1), demais Custos (DP e MC), e Custos da Administração Central (K2)
A31: K'4 - Incide sobre o Custo Total (CT) Mão de Obra com encargos (MO x K1), demais Custos (DP e MC), Custos da Administração Central (K2) e Lucro (K3)
A32: K3 - Incide sobre o Preço Total (PT) menos as Despesas Fiscais (DF)
A33: K4 - Incide sobre o Preço Total (PT)

Sheet FCON3_OS
A1: PROPOSTA FINANCEIRA DO PROJETO | F1: CODIGO:
F2: FCON-3
A3: NOME DA CONSULTORA:
A5: PROJETO: | D5: PRODUTO: | F5: CONTRATO:
A6: LEVANTAMENTO CARTOGRÁFICO AEROFOTOGRAMÉTRICO DIGITAL E LIDAR DE ÁREAS A JUSANTE DE BARRAGENS DA CODEVASF
A7: Cod. | B7: Categoria / Insumo | C7: Uni | D7: Qde | E7: PU | F7: PT
A8: LA | B8: Levantamento Aerofotogramétrico
A9: LA01 | B9: Voo Aerofotogramétrico | C9: km²
A10: LA02 | B10: Planejamento | C10: km²
A11: LA03 | B11: Apoio de Campo | C11: km²
A12: LA04 | B12: Aerotriangulação | C12: km²
A13: LA05 | B13: Restituição | C13: km²
A14: LA06 | B14: Reambulação | C14: km²
A15: LA07 | B15: Edição/Revisão | C15: km²
A16: LA08 | B16: Entrega Final | C16: km²
A17: MC | B17: Materiais de Consumo
A18: M1 | B18: HD Externo 4TB | C18: Uni
A19: M2 | B19: Servidor NAS 4 Baias 40TB | C19: Uni
A20: M3 | B20: HD Interno SATA3 10TB | C20: Uni
A21: TOTAL DO PRODUTO | E21: =SUM(F8:F19) -> 0
A22: SALDO RESTANTE DO CONTRATO | E22: =SUM(F9:F20) -> 0
A23: FISCAL DO CONTRATO Nº _______________________: | E23: PRAZO DE ELABORAÇÃO:
A25: ASSINATURA: | E25: DATA DE AUTORIZAÇÃO:
A27: OBSERVAÇÃO:
A28: O PRODUTO DEVE SER ELABORADO CONFORME ESPECIFICAÇÕES DADAS NO TERMO DE REFERÊNCIA E EDITAL, COM AS MODIFICAÇÕES TÉCNICAS E ESPECIFICIDADES ESTABELECIDAS NO ANEXO DESTA ORDEM DE SERVIÇO.
